bitfinex-derivatives/quotes_ETHF0:USTF0_20241230
["timestamp","ask_amount","ask_price","bid_price","bid_amount"]
[1735544615989,4.72896189,3423.7,3423.5,0.29264]
[1735544616288,0.18298046,3423.6,3423.5,0.29264]
[1735544616483,0.63690112,3423.6,3423.4,0.29265]
[1735544616683,0.18298046,3423.5,3423.4,0.29265]
[1735544617088,0.18297187,3423.5,3423.1,3.2078]
[1735544617294,0.18297187,3423.4,3423.3,0.29267]
[1735544623291,0.45400515,3423.5,3423.1,3.2078]
[1735544623592,0.45400515,3423.5,3423.4,0.29266]
[1735544623795,0.63697811,3423.5,3423.4,0.29266]
[1735544625580,0.63701044,3423.5,3423.4,0.29266]
[1735544625783,0.63701044,3423.5,3423.1,3.2078]
[1735544625992,0.18297308,3423.4,3423.3,0.29267]
[1735544626189,0.18297308,3423.4,3423.1,3.2078]
[1735544626388,0.18297308,3423.3,3423.2,0.29268]
[1735544626590,0.45403736,3423.5,3423.1,3.2078]
[1735544626785,0.45403736,3423.5,3423.4,0.29266]
[1735544627186,0.63700642,3423.5,3423.4,0.29266]
[1735544628194,0.18296906,3423.5,3423.4,0.29266]
[1735544628394,0.45447542,3423.5,3423.4,0.29266]
[1735544628592,0.18296906,3423.5,3423.4,0.29266]
[1735544629086,0.18296906,3423.5,3423.1,3.2078]
[1735544629291,0.45462964,3423.3,3422.8,0.4436]
[1735544629490,3.2078,3423.5,3422.8,0.4436]
[1735544629688,0.74755411,3423.2,3423.0,0.2927]
[1735544629887,0.1829899,3423.1,3423.0,0.2927]
[1735544630494,0.45487411,3423.1,3423.0,0.2927]
[1735544631191,0.45487411,3423.1,3422.5,6.81060963]
[1735544631192,5.54905293,3423.1,3422.5,6.81060963]
[1735544631388,3.2078,3422.6,3422.5,7.10334963]
[1735544631692,3.3907899,3422.6,3422.5,7.10334963]
[1735544632086,3.3907899,3422.6,3422.5,0.29274]
[1735544632492,3.2078,3422.6,3422.5,0.29274]
[1735544634699,4.48847511,3423.0,3422.3,0.4205]
[1735544634895,4.48847511,3423.0,3422.9,0.29271]
[1735544635794,4.48844927,3423.0,3422.3,0.4205]
[1735544636000,0.45504927,3422.8,3422.6,0.29273]
[1735544636299,0.74775927,3422.9,3422.7,0.29272]
[1735544636498,0.45504927,3422.9,3422.7,0.29272]
[1735544636995,0.45504927,3422.9,3422.8,0.29272]
[1735544637200,4.0334,3423.0,3422.9,0.29271]
[1735544637500,0.8256,3423.0,3422.9,0.29271]
[1735544637693,0.4148,3423.0,3422.9,0.29271]
[1735544637895,0.45504927,3423.1,3423.0,0.2927]
[1735544638093,3.88931116,3423.2,3423.1,0.29269]
[1735544638294,0.45504927,3423.2,3423.1,0.29269]
[1735544638999,0.45502228,3423.2,3423.1,0.29269]
[1735544640602,1.12737,3423.4,3422.8,0.4232]
[1735544640804,0.45500575,3423.1,3423.0,0.2927]
[1735544641104,3.66280684,3423.1,3423.0,0.2927]
[1735544641606,3.66279051,3423.1,3423.0,0.2927]
[1735544641999,3.66279051,3423.1,3422.5,4.59228535]
[1735544642199,0.45499051,3423.0,3422.9,0.2927]
[1735544643101,3.66279051,3423.1,3423.0,0.29269]
[1735544643403,3.6627275,3423.1,3423.0,0.29269]
[1735544644101,3.6627014,3423.1,3423.0,0.29269]
[1735544644300,0.4549014,3423.1,3423.0,0.29269]
[1735544644500,3.88916329,3423.3,3422.7,3.2078]
[1735544644701,0.4549014,3423.1,3423.0,0.29269]
[1735544644901,3.6627014,3423.1,3423.0,0.29269]
[1735544645102,3.6627014,3423.1,3422.9,0.2927]
[1735544645296,0.45488513,3423.0,3422.9,0.2927]
[1735544645497,0.45488513,3423.0,3422.7,0.29271]
[1735544645803,0.74759513,3422.9,3422.7,0.29272]
[1735544646003,0.4492,3422.8,3422.7,0.29272]
[1735544646203,0.8924,3422.8,3422.5,4.59228535]
[1735544646502,3.95540513,3422.7,3422.5,4.59228535]
[1735544646690,0.29273,3422.6,3422.5,4.59228535]
[1735544647390,0.29273,3422.6,3422.2,4.59228535]
[1735544647701,3.66268513,3422.7,3422.5,0.29273]
[1735544647895,0.29273,3422.6,3422.3,0.29275]
[1735544648103,1.19981513,3422.6,3422.3,0.29275]
[1735544648402,0.90708513,3422.6,3422.4,0.29274]
[1735544648703,4.34134702,3422.6,3422.4,0.29274]
[1735544648900,4.63407702,3422.6,3422.4,0.29274]
[1735544649199,3.88646189,3422.6,3422.4,0.29274]
[1735544649500,3.43426189,3422.6,3422.5,0.29274]
[1735544651104,0.29274,3422.5,3422.3,0.29275]
[1735544651298,3.84916189,3422.6,3422.1,4.59228535]
[1735544651499,3.43426189,3422.6,3422.5,0.29274]
[1735544651691,3.2078,3422.7,3422.1,4.59228535]
[1735544651692,6.64206189,3422.7,3422.1,4.59228535]
[1735544651894,3.43426189,3422.7,3422.6,0.29273]
[1735544653095,6.64206189,3422.7,3422.6,0.29273]
[1735544653297,3.2078,3422.7,3422.6,0.29273]
[1735544654104,3.2078,3422.7,3422.3,0.29275]
[1735544654397,3.66216581,3422.7,3422.6,0.29273]
[1735544654601,3.2078,3422.7,3422.6,0.29273]
[1735544654803,3.66216581,3422.7,3422.6,0.29273]
[1735544655006,3.66216581,3422.7,3422.3,0.29275]
[1735544655007,3.95488581,3422.7,3422.3,0.29275]
[1735544655200,3.95488581,3422.7,3422.5,0.29273]
[1735544655403,3.66216581,3422.7,3422.5,0.29273]
[1735544655801,0.74709581,3422.6,3422.3,0.29275]
[1735544656003,0.29273,3422.6,3422.3,0.29275]
[1735544656597,0.74709581,3422.6,3422.3,0.29275]
[1735544657106,0.45436581,3422.5,3422.3,0.29275]
[1735544657503,0.74709581,3422.6,3422.3,0.29275]
[1735544657700,0.45436581,3422.6,3422.5,0.29274]
[1735544657905,7.0964277,3422.7,3422.6,0.29273]
[1735544658106,6.64206189,3422.7,3422.6,0.29273]
[1735544658911,3.2078,3422.7,3422.6,0.29273]
[1735544660807,3.88891371,3423.0,3422.4,5.54905293]
[1735544661007,3.43426189,3423.0,3422.8,3.2078]
[1735544661206,3.43426189,3423.0,3422.9,0.2927]
[1735544662808,3.43426189,3423.0,3422.6,0.4511]
[1735544662809,0.45477953,3423.1,3423.0,0.29269]
[1735544663598,0.45477953,3423.1,3422.7,0.4195]
[1735544663910,0.45477953,3423.0,3422.9,0.2927]
[1735544664111,0.87847953,3423.0,3422.9,0.2927]
[1735544664914,0.4237,3423.0,3422.9,0.2927]
[1735544665105,3.2078,3423.2,3423.0,0.29269]
[1735544665106,3.66257953,3423.2,3423.0,0.29269]
[1735544665411,3.2078,3423.2,3423.1,0.29267]
[1735544665612,6.64206189,3423.2,3423.1,0.29267]
[1735544666111,7.09684573,3423.2,3423.1,0.29267]
[1735544666312,6.64206189,3423.2,3423.0,0.29268]
[1735544666614,0.4547397,3423.1,3423.0,0.29268]
[1735544667111,3.64701585,3423.2,3423.1,0.29267]
[1735544668211,3.2078,3423.2,3423.1,0.29267]
[1735544669908,0.45464128,3423.3,3422.8,4.59228535]
[1735544670113,0.45464128,3423.3,3423.2,0.29267]
[1735544671210,3.43609247,3423.4,3423.3,0.29267]
[1735544672711,5.40726944,3423.6,3423.5,0.29265]
[1735544672712,0.8377,3423.6,3423.5,0.29265]
[1735544673015,0.63755907,3423.6,3423.5,0.29265]
[1735544673414,0.18297009,3423.6,3423.5,0.29265]
[1735544673611,0.18296771,3423.6,3423.2,5.43668535]
[1735544673810,0.45437973,3423.7,3423.2,5.43668535]
[1735544673811,0.18296635,3423.5,3423.2,5.43668535]
[1735544674015,0.45437973,3423.7,3423.6,0.29265]
[1735544674316,0.18296518,3423.7,3423.6,0.29265]
[1735544674517,3.61905765,3423.7,3423.6,0.29265]
[1735544675112,4.07343738,3423.7,3423.6,0.29265]
[1735544675313,3.61905765,3423.7,3423.6,0.29265]
[1735544675814,0.18296518,3423.7,3423.6,0.29265]
[1735544678121,0.18296864,3423.7,3423.6,0.29265]
[1735544678613,0.45376068,3423.8,3423.6,0.29265]
[1735544679513,0.45376068,3423.8,3423.2,0.8444]
[1735544679709,0.45376068,3423.8,3423.5,0.29265]
[1735544679916,0.74640068,3423.8,3423.5,0.29265]
[1735544680625,0.74640068,3423.8,3423.2,0.8444]
[1735544680813,0.74640068,3423.8,3423.6,0.29264]
[1735544681215,0.45387328,3423.8,3423.7,0.29263]
[1735544684318,2.74128955,3423.8,3423.7,0.29263]
[1735544684822,2.28743597,3423.8,3423.7,0.29263]
[1735544685028,2.47040272,3423.8,3423.7,0.29263]
[1735544686828,2.47040272,3423.8,3423.2,0.8444]
[1735544687128,0.18296675,3423.7,3423.6,0.29263]
[1735544687432,0.18297662,3423.7,3423.6,0.29263]
[1735544687621,0.61907662,3423.7,3423.6,0.29263]
[1735544687928,2.90651259,3423.7,3423.6,0.29263]
[1735544689028,0.29264,3423.6,3423.3,0.29266]
[1735544689230,0.45427937,3423.5,3423.3,0.29266]
[1735544689426,0.74692937,3423.5,3423.3,0.29266]
[1735544689626,0.45427937,3423.4,3423.3,0.29266]
[1735544690625,0.74715999,3423.4,3423.2,0.29267]
[1735544690825,0.4221,3423.3,3423.2,0.29268]
[1735544691527,0.45449999,3423.4,3423.1,3.2078]
[1735544691833,2.28743597,3423.5,3423.4,0.29266]
[1735544693026,0.45449999,3423.8,3423.2,0.4178]
[1735544693228,0.45459683,3423.7,3423.2,0.4178]
[1735544693529,0.45459683,3423.7,3423.6,0.29264]
[1735544693731,0.45459683,3423.7,3423.1,3.2078]
[1735544693931,0.45457311,3423.5,3423.4,0.29265]
[1735544694320,0.4416,3423.6,3423.1,3.2078]
[1735544694321,0.4416,3423.6,3423.1,7.80008535]
[1735544694527,0.4416,3423.6,3423.5,0.29265]
[1735544694724,0.8923,3423.6,3423.5,0.29265]
[1735544695231,3.17973597,3423.6,3423.5,0.29265]
[1735544695432,3.17973597,3423.6,3423.1,3.2078]
[1735544695726,0.29265,3423.5,3423.2,0.29267]
[1735544696331,2.28743597,3423.4,3423.2,0.29267]
[1735544696629,0.4322,3423.3,3423.2,0.29267]
[1735544697524,0.88682702,3423.3,3423.2,0.29267]
[1735544697925,0.4322,3423.3,3423.2,0.29267]
[1735544698238,2.74206299,3423.4,3423.1,3.2078]
[1735544698432,2.74206299,3423.4,3423.3,0.29267]
[1735544698931,2.74207154,3423.4,3423.3,0.29267]
[1735544699333,0.45463557,3423.4,3423.3,0.29267]
[1735544699831,0.45465041,3423.4,3423.1,3.2078]
[1735544700133,0.45465041,3423.4,3423.3,0.29267]
[1735544700836,3.62503597,3423.6,3423.5,0.29265]
[1735544701236,3.62503597,3423.6,3423.4,0.29265]
[1735544702133,2.28743597,3423.5,3423.4,0.29265]
[1735544702327,2.28743597,3423.5,3423.1,3.2078]
[1735544702524,2.58008597,3423.5,3423.3,0.29266]
[1735544702725,2.58008597,3423.5,3423.2,0.29267]
[1735544702925,0.29266,3423.4,3423.2,0.29267]
[1735544703835,3.43609247,3423.4,3423.2,0.29267]
[1735544704031,3.72875247,3423.4,3423.2,0.29267]
[1735544704231,3.43609247,3423.4,3423.2,0.29267]
[1735544705729,3.43609247,3423.4,3423.3,0.29267]
[1735544706234,0.45438881,3423.4,3423.3,0.29267]
[1735544707025,0.18297993,3423.4,3423.3,0.29267]
[1735544709230,0.63739549,3423.4,3423.3,0.29267]
[1735544709436,2.47216389,3423.4,3423.3,0.29267]
[1735544710726,0.18297993,3423.4,3423.3,0.29267]
[1735544711129,0.18297993,3423.4,3423.2,4.59228535]
[1735544711130,0.18297301,3423.4,3423.2,4.59228535]
[1735544711335,0.6373788,3423.3,3423.2,4.88496535]
[1735544711835,2.92700638,3423.3,3423.2,0.29268]
[1735544712439,2.47260059,3423.3,3423.2,0.29268]
[1735544713338,0.18297301,3423.3,3423.2,4.4965286]
[1735544714337,0.18296309,3423.3,3423.2,4.4965286]
[1735544714732,0.18296032,3423.3,3423.2,4.4965286]
[1735544716040,0.18296032,3423.3,3423.2,13.57734144]
[1735544716236,2.28962758,3423.5,3423.4,0.29266]
[1735544716435,2.47259025,3423.5,3423.4,0.29266]
[1735544716635,2.92700892,3423.5,3423.4,0.29266]
[1735544716833,2.47259025,3423.5,3423.4,0.29266]
[1735544717733,2.47259025,3423.5,3423.4,4.89763571]
[1735544717734,3.61641201,3423.5,3423.4,4.89763571]
[1735544718137,3.43344934,3423.5,3423.4,4.89763571]
[1735544718537,3.43344934,3423.5,3423.4,6.48023571]
[1735544718741,1.9261566,3423.5,3423.4,6.48023571]
[1735544718941,1.9261566,3423.5,3423.4,11.48023571]
[1735544718942,0.68392207,3423.5,3423.4,11.48023571]
[1735544719343,5.64579169,3424.0,3423.7,0.29263]
[1735544719344,2.05700071,3423.8,3423.7,0.29263]
[1735544719545,1.60635313,3423.8,3423.7,3.50043]
[1735544720548,0.8786,3424.0,3423.9,0.29262]
[1735544722150,0.8786,3424.0,3423.9,4.49625176]
[1735544724738,0.4451,3424.4,3424.2,0.29259]
[1735544724946,1.05863623,3424.3,3424.2,0.29259]
[1735544726147,1.3147474,3424.3,3424.2,0.29259]
[1735544727554,0.8757,3424.3,3424.2,0.29259]
[1735544732756,0.4436,3424.3,3424.2,0.29259]
[1735544733250,4.99526944,3424.8,3424.7,0.29255]
[1735544733456,4.56956944,3424.8,3424.7,2.34125293]
[1735544733656,4.56956944,3424.8,3424.6,3.2078]
[1735544733856,4.56956944,3424.8,3424.7,0.29255]
[1735544734358,5.93859169,3425.0,3424.9,0.29253]
[1735544734359,0.2928,3425.0,3424.9,0.29253]
[1735544734552,0.2928,3425.3,3425.0,0.29251]
[1735544734749,0.5853,3425.3,3425.0,0.29251]
[1735544735549,0.5853,3425.3,3424.6,7.80575827]
[1735544735550,0.2928,3425.3,3425.1,0.29251]
[1735544735851,0.43895855,3425.2,3424.6,3.2078]
[1735544736059,0.43895855,3425.2,3425.1,0.29251]
[1735544736258,0.43895855,3425.2,3425.0,0.29252]
[1735544737347,0.43895855,3425.2,3425.1,0.29251]
[1735544737556,0.43895855,3425.2,3425.0,0.29252]
[1735544739352,0.18289595,3425.1,3425.0,0.29252]
[1735544741762,3.5006,3425.3,3425.0,0.29252]
[1735544741763,0.1828968,3425.2,3425.0,0.29252]
[1735544741954,0.1828968,3425.1,3425.0,0.29252]
[1735544742958,0.1828968,3425.1,3424.9,0.29253]
[1735544743164,0.5950968,3425.0,3424.9,0.29253]
[1735544744855,0.59509734,3425.0,3424.6,4.60457736]
[1735544745062,0.2928,3424.9,3424.8,0.29254]
[1735544745261,0.9006992,3424.9,3424.8,0.29254]
[1735544745461,0.9006992,3424.9,3424.6,4.01871736]
[1735544745661,0.2928,3424.7,3424.6,3.43311736]
[1735544745861,0.2928,3424.7,3424.6,3.72567736]
[1735544746062,0.2928,3424.7,3424.6,1.68960736]
[1735544746257,0.2928,3424.7,3424.6,1.10400736]
[1735544747059,0.2928,3424.7,3424.6,1.34326188]
[1735544748654,0.47570025,3424.7,3424.6,1.34326188]
[1735544749258,0.2928,3424.7,3424.6,1.34326188]
[1735544750357,0.2928,3424.7,3424.6,2.36846903]
[1735544751155,0.47570499,3424.7,3424.6,2.36846903]
[1735544751350,0.47570494,3424.7,3424.6,2.36846903]
[1735544751554,0.47570491,3424.7,3424.6,2.36846903]
[1735544752270,0.4202,3424.8,3424.7,0.29255]
[1735544752458,0.60309721,3424.8,3424.7,0.29255]
[1735544753467,3.2078,3425.0,3424.9,0.29253]
[1735544753667,3.39068913,3425.0,3424.9,1.31773715]
[1735544753875,4.41589628,3425.0,3424.2,8.97475827]
[1735544754166,0.29256,3424.6,3424.3,0.29258]
[1735544754366,0.4544,3424.5,3424.3,0.29258]
[1735544754557,0.18288913,3424.4,3424.3,0.29258]
[1735544754758,1.20809628,3424.4,3424.3,0.29258]
[1735544754972,1.20809628,3424.4,3423.9,4.59795827]
[1735544755161,4.23300715,3424.0,3423.9,4.59795827]
[1735544755356,4.23300715,3424.0,3423.9,3.91435827]
[1735544755357,6.18763523,3424.0,3423.9,3.91435827]
[1735544755556,5.73371343,3424.0,3423.9,0.98735827]
[1735544756060,4.70850628,3424.0,3423.9,0.98735827]
[1735544756267,6.01789511,3424.0,3423.9,0.98735827]
[1735544756566,0.29263,3423.8,3423.7,6.90298235]
[1735544756866,0.29266,3423.4,3423.0,0.29269]
[1735544757054,0.18288913,3423.3,3422.9,2.0108]
[1735544757257,0.45350917,3423.7,3423.6,0.29264]
[1735544757563,0.63647252,3423.7,3423.6,0.29264]
[1735544757757,0.63647252,3423.7,3423.0,5.54239598]
[1735544757963,0.18295821,3423.6,3423.3,0.29266]
[1735544758162,3.39075821,3423.5,3423.0,5.54239598]
[1735544758363,3.2078,3423.5,3423.0,5.54239598]
[1735544759065,3.2078,3423.5,3423.4,0.29265]
[1735544759266,3.39077183,3423.5,3423.4,0.29265]
[1735544759768,0.45350917,3423.7,3423.6,0.29264]
[1735544760264,4.56956944,3424.2,3423.5,0.4373]
[1735544760465,0.18293982,3424.1,3424.0,0.2926]
[1735544760670,0.18293982,3424.1,3423.6,0.447]
[1735544760970,0.18294576,3424.0,3423.7,0.29263]
[1735544761266,3.2078,3424.3,3423.7,0.29263]
[1735544761471,0.18294401,3424.2,3423.9,0.29261]
[1735544761673,0.18294401,3424.1,3423.9,0.29261]
[1735544761865,0.18294401,3424.0,3423.8,0.29262]
[1735544762067,3.50038,3424.3,3423.8,0.29262]
[1735544762268,0.18295164,3424.2,3423.8,0.29262]
[1735544762470,0.18295164,3424.1,3423.9,0.29261]
[1735544762769,3.2078,3424.3,3424.0,0.2926]
[1735544762966,0.18294745,3424.2,3424.0,0.2926]
[1735544763167,0.18294745,3424.1,3424.0,0.2926]
[1735544763970,3.2078,3424.3,3423.6,2.78159598]
[1735544764173,3.2078,3424.3,3424.2,0.29259]
[1735544764477,3.39073355,3424.3,3424.2,0.29259]
[1735544765476,4.56956944,3424.5,3424.4,0.29257]
[1735544765667,0.18292281,3424.5,3424.0,2.33459598]
[1735544765866,8.19586944,3424.7,3424.2,0.29259]
[1735544766062,0.18292588,3424.5,3424.3,0.29258]
[1735544766380,8.19586944,3424.7,3424.3,0.29258]
[1735544766676,0.18292686,3424.5,3424.3,0.29258]
[1735544766871,8.19586944,3424.7,3424.3,0.29258]
[1735544767070,0.18292685,3424.5,3424.3,0.29258]
[1735544767272,8.19586944,3424.7,3424.3,0.29258]
[1735544767475,0.18292683,3424.5,3424.3,0.29258]
[1735544767677,0.29257,3424.5,3424.1,0.71319]
[1735544767979,3.2078,3424.3,3424.2,0.29258]
[1735544768171,0.86413442,3424.6,3424.1,0.4206]
[1735544768372,0.86413442,3424.6,3424.3,0.29258]
[1735544768676,0.18292876,3424.5,3424.3,0.29258]
[1735544768879,0.42510993,3424.6,3424.3,0.29258]
[1735544769080,0.00180993,3424.6,3424.5,0.29256]
[1735544769271,0.00180993,3424.6,3424.4,0.44536]
[1735544769575,0.00180993,3424.6,3424.4,0.44512]
[1735544769766,0.00180993,3424.6,3424.4,0.44488]
[1735544769969,0.00180993,3424.6,3424.4,0.44464]
[1735544770178,0.00180993,3424.6,3424.5,0.29256]
[1735544770378,3.2078,3424.7,3424.6,0.29256]
[1735544770679,4.56956944,3425.0,3424.8,0.29253]
[1735544771269,4.56956944,3425.0,3424.9,0.29253]
[1735544771571,0.1828985,3425.0,3424.8,0.29253]
[1735544771872,0.43896556,3425.1,3425.0,0.29252]
[1735544774279,0.43896556,3425.1,3425.0,2.33431598]
[1735544774579,0.43896556,3425.1,3425.0,0.29252]
[1735544775879,0.43896556,3425.5,3425.2,0.29251]
[1735544776075,0.18288777,3425.4,3425.2,0.29251]
[1735544776274,0.18288777,3425.3,3425.2,0.29251]
[1735544776671,0.18288777,3425.4,3424.8,2.33459598]
[1735544776875,0.18288777,3425.4,3425.2,0.2925]
[1735544777073,0.43896556,3425.3,3425.2,0.2925]
[1735544777376,0.62185333,3425.3,3425.2,0.2925]
[1735544777573,0.43896556,3425.3,3424.8,2.33459598]
[1735544777882,0.43896556,3425.3,3425.0,0.29252]
[1735544778074,0.43896556,3425.3,3425.1,0.29252]
[1735544779581,0.29249,3425.4,3425.1,0.29252]
[1735544779783,0.18288994,3425.3,3424.7,0.68925826]
[1735544780076,0.29249,3425.4,3424.7,0.68925826]
[1735544780272,2.77356154,3425.5,3424.7,0.4515]
[1735544780273,0.29252,3425.1,3424.7,0.4515]
[1735544780477,0.9055,3425.0,3424.7,0.29255]
[1735544780678,1.3544,3425.0,3424.5,3.6282]
[1735544780980,3.43249073,3424.9,3424.8,0.29254]
[1735544782781,3.87145629,3424.9,3424.8,0.29254]
[1735544782977,0.43896556,3424.9,3424.8,0.29254]
[1735544784284,0.43896556,3425.1,3424.5,3.6282]
[1735544784475,0.18289532,3425.0,3424.5,3.6282]
[1735544784782,0.43896556,3425.1,3424.9,0.29252]
[1735544784985,0.43896556,3425.1,3424.5,3.6282]
[1735544784986,0.18290075,3425.0,3424.8,0.29253]
[1735544785182,0.18290075,3424.9,3424.8,0.29253]
[1735544785477,3.8735674,3424.9,3424.8,0.29254]
[1735544785675,4.05646815,3424.9,3424.8,0.29254]
[1735544786073,3.8735674,3424.9,3424.8,0.29254]
[1735544786981,4.05646779,3424.9,3424.8,0.29254]
[1735544787281,4.05646865,3424.9,3424.8,0.29254]
[1735544788183,4.05646865,3424.9,3424.2,0.4134]
[1735544788371,0.29257,3424.5,3424.1,3.2078]
[1735544788579,0.18290125,3424.4,3424.1,3.2078]
[1735544788782,0.18290125,3424.3,3424.1,3.50039]
[1735544789082,0.4517,3424.2,3424.1,3.50039]
[1735544789274,0.4517,3424.2,3424.1,3.20759]
[1735544790578,4.3197674,3424.3,3424.2,0.29259]
[1735544791077,3.8735674,3424.3,3424.2,0.29259]
[1735544791282,3.43460184,3424.4,3424.3,0.29258]
[1735544791483,3.61752507,3424.4,3424.3,0.29258]
[1735544792084,3.6175263,3424.4,3424.3,0.29258]
[1735544792783,0.18292446,3424.4,3424.3,0.29258]
[1735544793285,0.18292446,3424.4,3424.1,2.915]
[1735544793485,0.18292446,3424.3,3424.1,3.20759]
[1735544793979,0.18292446,3424.3,3424.2,0.29259]
[1735544794189,0.47550446,3424.4,3424.1,3.20759]
[1735544794384,3.2078,3424.2,3424.1,0.29259]
[1735544794580,3.39072446,3424.2,3424.1,0.29259]
[1735544797085,3.43460184,3424.4,3424.3,0.29258]
[1735544797789,3.43460184,3424.4,3424.3,1.58158]
[1735544798089,3.61752706,3424.4,3424.3,1.58158]
[1735544798285,3.61752706,3424.4,3424.3,1.16208]
[1735544798487,0.18292522,3424.4,3424.3,1.16208]
[1735544799381,0.18292467,3424.4,3424.3,0.86928]
[1735544799782,3.2078,3424.6,3424.3,0.86928]
[1735544799783,3.43460184,3424.5,3424.3,0.5767]
[1735544800178,3.43460184,3424.5,3424.4,0.71207]
[1735544800689,3.61751281,3424.5,3424.4,0.71207]
[1735544801085,0.18291097,3424.5,3424.4,0.71207]
[1735544801692,0.18291097,3424.5,3424.4,0.29257]
[1735544802490,3.2078,3424.6,3424.5,0.29257]
[1735544802693,3.39071373,3424.6,3424.5,0.29257]
[1735544803093,3.39071373,3424.6,3424.3,0.4246]
[1735544803388,0.18291373,3424.5,3424.4,0.29258]
[1735544803594,0.18291373,3424.5,3424.4,0.74368]
[1735544803887,7.08139522,3424.6,3424.5,0.29257]
[1735544804093,3.87359522,3424.6,3424.5,0.29257]
[1735544804286,0.24949522,3424.6,3424.5,0.29257]
[1735544804591,4.56956944,3424.9,3424.8,0.29254]
[1735544804780,0.18289734,3424.9,3424.8,0.29254]
[1735544805386,0.18290527,3424.9,3424.8,0.29254]
[1735544806092,1.31655669,3425.0,3424.8,0.29254]
[1735544806093,0.8776,3425.0,3424.8,0.29254]
[1735544806287,0.8776,3425.0,3424.9,0.29254]
[1735544806482,0.8776,3425.0,3424.4,2.33459598]
[1735544806689,0.8776,3425.0,3424.6,0.29256]
[1735544806690,0.29254,3424.9,3424.6,0.29256]
[1735544807191,1.32,3425.0,3424.6,0.29256]
[1735544807387,0.29255,3424.8,3424.6,0.29256]
[1735544807789,1.32,3425.0,3424.5,0.29257]
[1735544807993,0.29255,3424.8,3424.5,0.29257]
[1735544808393,4.56956944,3424.9,3424.3,4.8004]
[1735544808599,0.29258,3424.5,3424.3,3.2078]
[1735544808901,0.862,3424.4,3424.3,3.50039]
[1735544809193,0.862,3424.4,3424.3,3.2078]
[1735544809395,0.862,3424.4,3423.9,0.41779]
[1735544809793,3.2078,3424.6,3423.9,0.41779]
[1735544810093,3.50037,3424.6,3424.4,0.29257]
[1735544810298,3.50037,3424.6,3424.3,0.29258]
[1735544810500,0.29257,3424.5,3424.3,0.29258]
[1735544811690,0.29257,3424.5,3423.9,0.41779]
[1735544811691,0.2926,3424.2,3424.0,0.29261]
[1735544811894,0.4137,3424.1,3423.8,0.4109]
[1735544812195,0.7063,3424.1,3423.8,0.70352]
[1735544812393,1.1597,3424.1,3423.8,0.70352]
[1735544812699,1.15971,3424.1,3423.9,0.29262]
[1735544813097,0.8671,3424.1,3423.9,0.29262]
[1735544813294,0.8671,3424.1,3423.5,0.8552]
[1735544813498,3.2078,3423.6,3423.3,6.90298235]
[1735544813800,0.4493,3423.5,3423.3,7.19565235]
[1735544813993,0.8964,3423.5,3423.3,7.19565235]
[1735544814188,0.8964,3423.5,3423.3,6.90298235]
[1735544814393,3.23099598,3423.5,3423.1,0.29268]
[1735544814605,0.71297,3423.4,3423.1,0.29268]
[1735544814797,0.4203,3423.4,3423.1,0.29268]
[1735544815208,0.4203,3423.4,3423.1,0.29269]
[1735544816009,0.4203,3423.4,3423.2,0.29267]
[1735544817007,0.71297,3423.4,3423.1,0.29269]
[1735544817607,3.2078,3423.2,3422.9,0.2927]
[1735544817907,0.2927,3423.1,3422.8,0.29271]
[1735544818208,5.83508598,3423.2,3422.9,0.2927]
[1735544818713,5.83506598,3423.2,3422.9,0.29269]
[1735544818913,5.54239598,3423.2,3422.9,0.29269]
[1735544819116,5.83506598,3423.2,3422.9,0.29269]
[1735544819709,5.54239598,3423.2,3422.9,0.29269]
[1735544819910,5.54239598,3423.2,3422.7,0.8651]
[1735544820108,5.54239598,3423.2,3422.9,0.29269]
[1735544820310,5.54239598,3423.2,3423.0,0.29268]
[1735544820510,5.54239598,3423.2,3422.9,0.29268]
[1735544821111,3.2078,3423.2,3423.0,0.29268]
[1735544824017,0.29269,3423.0,3422.6,0.29271]
[1735544824212,1.18629,3422.9,3422.3,3.2078]
[1735544824409,1.18629,3422.9,3422.2,0.8824]
[1735544824410,3.2078,3422.6,3422.2,0.8824]
[1735544824611,3.2078,3422.6,3422.2,0.4508]
[1735544824820,3.50052,3422.6,3422.2,0.74355]
[1735544825019,3.2078,3422.6,3422.2,0.4508]
[1735544825509,3.2078,3422.6,3422.3,0.29274]
[1735544826717,3.2078,3422.6,3422.2,0.4508]
[1735544827018,3.2078,3422.6,3422.5,0.29273]
[1735544828721,3.2078,3422.6,3422.5,2.62732598]
[1735544830221,3.2078,3422.6,3422.5,0.29273]
[1735544831718,3.2078,3423.2,3422.9,0.29268]
[1735544832017,3.2078,3423.2,3422.5,0.4488]
[1735544832324,3.50047,3423.2,3423.0,0.29268]
[1735544832623,3.2078,3423.2,3423.0,0.29268]
[1735544834019,3.2078,3423.2,3422.7,0.4298]
[1735544834219,3.2078,3423.2,3423.0,0.29267]
[1735544836417,3.2078,3423.2,3422.7,0.4298]
[1735544836628,3.2078,3423.2,3422.9,0.29269]
[1735544836629,3.50047,3423.2,3422.9,0.29269]
[1735544837426,0.29268,3423.1,3422.8,0.29269]
[1735544838518,0.29268,3423.1,3422.8,0.2927]
[1735544839428,0.29269,3422.9,3422.7,0.4298]
[1735544839822,0.8706,3422.8,3422.7,0.4298]
[1735544840532,9.0784,3422.8,3421.8,3.2078]
[1735544840829,0.29274,3422.3,3422.0,0.29276]
[1735544841032,0.4375,3422.2,3422.0,0.29276]
[1735544841330,0.8631,3422.2,3422.0,0.29276]
[1735544841525,3.19769598,3422.2,3421.8,0.4243]
[1735544841726,3.2078,3421.9,3421.5,0.29281]
[1735544842029,0.29279,3421.8,3421.4,0.95078995]
[1735544842228,0.2928,3421.6,3421.4,0.4243]
[1735544842425,3.2078,3421.9,3421.3,0.417]
[1735544842627,0.2928,3421.7,3421.3,0.70982]
[1735544843621,0.2928,3421.7,3421.3,0.29282]
[1735544843822,0.4497,3421.6,3421.3,0.29282]
[1735544844822,0.4497,3421.6,3421.2,0.29284]
[1735544845126,0.4497,3421.6,3421.3,0.29282]
[1735544845823,0.29282,3421.5,3421.1,0.74064]
[1735544846026,0.71892,3421.5,3421.2,0.29284]
[1735544846219,0.4261,3421.5,3421.2,0.29284]